fUSD/lending_fUSD_20240317
["ID","MTS","AMOUNT","RATE_DAILY","PERIOD"]
[319274303,1710635438434,-159.52126381,0.00012206,2]
[319274304,1710635438444,-159.52126381,0.0001242,2]
[319274305,1710635438455,-159.52126381,0.00012634,2]
[319274306,1710635438465,-1283.9,0.00012833,2]
[319274307,1710635438474,-159.52126381,0.00012847,2]
[319274308,1710635438483,-23900.0,0.00012956,2]
[319274309,1710635438491,-200.0,0.00012988,2]
[319274310,1710635438500,-500.0,0.00013016,2]
[319274311,1710635438509,-2808.64,0.00013032,2]
[319274312,1710635438519,-210.0,0.00013047,2]
[319274313,1710635438528,-159.52126381,0.00013061,2]
[319274314,1710635438537,-250.0,0.00013193,2]
[319274315,1710635438546,-168.39,0.00013257,2]
[319274316,1710635438555,-168.39,0.00013261,2]
[319274317,1710635438564,-159.52126381,0.00013275,2]
[319274318,1710635438573,-681.14,0.00013378,2]
[319274319,1710635438583,-180.9,0.00013389,2]
[319274320,1710635438592,-188.37,0.00013428,2]
[319274321,1710635438603,-168.39,0.00013443,2]
[319274323,1710635438612,-364.49,0.0001347,2]
[319274324,1710635438621,-159.52126381,0.00013489,2]
[319274325,1710635438630,-168.39,0.00013628,2]
[319274326,1710635438639,-172.19,0.00013631,2]
[319274327,1710635438649,-290.4,0.00013655,2]
[319274328,1710635438658,-995.93,0.00013655,2]
[319274329,1710635438667,-2500.0,0.00013655,2]
[319274330,1710635438677,-323.69,0.0001368,2]
[319274331,1710635438686,-200.0,0.00013699,2]
[319274332,1710635438695,-163.47,0.00013699,2]
[319274333,1710635438705,-5000.0,0.00013699,2]
[319274334,1710635438714,-630.06,0.00013699,2]
[319274335,1710635438723,-250.0,0.00013699,2]
[319274336,1710635438732,-200.0,0.00013699,2]
[319274337,1710635438741,-2685.07296228,0.000137,2]
[319274338,1710635438751,-159.52126381,0.00013703,2]
[319274339,1710635438760,-819.1,0.00013724,2]
[319274340,1710635438769,-188.37,0.00013778,2]
[319274341,1710635438778,-168.39,0.00013814,2]
[319274342,1710635438787,-1600.0,0.000139,5]
[319274343,1710635438797,-159.52126381,0.00013917,2]
[319274344,1710635438806,-168.39,0.00013999,2]
[319274345,1710635438816,-11326.19792341,0.00014,2]
[319274346,1710635438825,-3300.0,0.00014,5]
[319274347,1710635438834,-4900.0,0.000141,5]
[319274348,1710635438846,-188.37,0.00014127,2]
[319274349,1710635438855,-159.52126381,0.00014131,2]
[319274350,1710635438865,-168.39,0.00014185,2]
[319274351,1710635438874,-6600.0,0.000142,5]
[319274352,1710635438883,-8200.0,0.000143,5]
[319274353,1710635438893,-159.52126381,0.00014345,2]
[319274354,1710635438902,-266.0,0.00014352,2]
[319274355,1710635438911,-2500.0,0.000144,2]
[319274356,1710635438920,-1600.0,0.000144,5]
[319274357,1710635438929,-1600.0,0.000145,5]
[319274358,1710635438938,-159.52126381,0.00014558,2]
[319274359,1710635438949,-1600.0,0.000146,5]
[319274360,1710635438959,-153.94,0.00014639,2]
[319274361,1710635438967,-1600.0,0.000147,5]
[319274362,1710635438977,-159.52126381,0.00014772,2]
[319274363,1710635438987,-2029.0,0.000148,5]
[319274364,1710635438996,-159.52126381,0.00014986,2]
[319274365,1710635439005,-28492.93808513,0.00015,5]
[319274366,1710635439017,-253.3534719,0.00015,5]
[319274367,1710635439036,-11253.70844297,0.00015,5]
[319274368,1710635439045,-3000.0,0.00015,2]
[319274369,1710635439054,-3000.0,0.0001503,2]
[319274370,1710635439063,-180.9,0.00015062,2]
[319274371,1710635439072,-238.57475714,0.000151,2]
[319274372,1710635439438,-3791.16944286,0.000151,2]
[319274373,1710635439447,-1000.0,0.000151,2]
[319274374,1710635439456,-231.62026692,0.000151,2]
[319274375,1710635439465,-164.21738744,0.000151,2]
[319274376,1710635439474,-231.62026685,0.00015143,2]
[319274377,1710635439482,-231.62026685,0.00015185,2]
[319274378,1710635439491,-3000.0,0.0001519,2]
[319274379,1710635439501,-1000.0,0.0001519,2]
[319274380,1710635439510,-5756.3716,0.000152,2]
[319274381,1710635439519,-2129.142,0.000152,2]
[319274382,1710635439528,-48741.57090149,0.000152,2]
[319274383,1710635440893,-6062.9094044,0.000152,2]
[319274384,1710635440907,-484.5265281,0.000152,2]
[319274385,1710635441716,-500.0,0.00013699,2]
[319274386,1710635441727,-2804.41424944,0.000152,2]
[319274387,1710635441926,-31574.29906351,0.000152,2]
[319274388,1710635441940,-2091.5394656,0.000152,2]
[319274389,1710635441981,-356.25,0.000152,2]
[319274390,1710635441994,-1944.26566131,0.000152,2]
[319274408,1710635443078,-7452.5235637,0.000152,2]
[319274409,1710635443180,-2184.72559752,0.000152,2]
[319274410,1710635443203,-300.175,0.000152,2]
[319274411,1710635443215,-944.3599996,0.000152,2]
[319274412,1710635443226,-1087.5,0.000152,2]
[319274413,1710635443321,-457.48388097,0.000152,2]
[319274414,1710635443358,-296.75772232,0.000152,2]
[319274416,1710635443469,-33113.24,0.000152,2]
[319274420,1710635446169,-891.46,0.0001433,2]
[319274421,1710635446180,-7447.83906204,0.000152,2]
[319274422,1710635446196,-2841.60535619,0.000152,2]
[319274423,1710635446214,-159.52126381,0.000152,2]
[319274424,1710635446224,-159.72,0.00015202,2]
[319274425,1710635446233,-2841.60535612,0.00015218,2]
[319274426,1710635446243,-231.62026685,0.00015228,2]
[319274427,1710635446254,-2841.60535612,0.00015236,2]
[319274428,1710635446263,-185.38153136,0.00015242,2]
[319274429,1710635446273,-244.54332566,0.00015242,2]
[319274430,1710635446283,-1100.64819141,0.00015242,2]
[319274431,1710635446293,-683.48825925,0.00015242,2]
[319274432,1710635446303,-2841.60535612,0.00015255,2]
[319274433,1710635446312,-231.62026685,0.00015271,2]
[319274434,1710635446322,-2841.60535612,0.00015273,2]
[319274435,1710635446331,-683.48825924,0.00015282,2]
[319274436,1710635446341,-2841.60535612,0.00015291,2]
[319274437,1710635446354,-1000.0,0.00015299,2]
[319274438,1710635446363,-1000.0,0.00015299,2]
[319274439,1710635446372,-1000.0,0.00015299,2]
[319274440,1710635446382,-1000.0,0.00015299,2]
[319274441,1710635446392,-1000.0,0.00015299,2]
[319274442,1710635446402,-1000.0,0.00015299,2]
[319274443,1710635446413,-730.0,0.000153,2]
[319274444,1710635446423,-364.25413584,0.000153,2]
[319274445,1710635446433,-162283.6831105,0.000153,2]
[319274446,1710635446479,-1849.06839482,0.000153,2]
[319274447,1710635446777,-137080.21319052,0.000153,2]
[319274448,1710635531732,100000.0,0.0002421,120]
[319274449,1710635585818,80000.0,0.000242,120]
[319274450,1710635585844,100000.0,0.000242,120]
[319274451,1710635752813,-11581.5294197,0.00015,5]
[319274452,1710635752849,-579.73889917,0.00015341,5]
[319274453,1710635753363,-1490021.73168113,0.000154,5]
[319274454,1710635811453,648.79,0.00011672,2]
[319274455,1710636087411,1500.0,0.000242,120]
[319274456,1710636148644,666.87715778,0.00011734,2]
[319274457,1710636149599,666.87715777,0.00011795,2]
[319274458,1710636190918,27294.02322245,0.0001173,2]
[319274459,1710636201347,391.19,0.00011767,2]
[319274460,1710636268157,163.38,0.00010077,2]
[319274461,1710636296963,710.29,0.00010699,2]
[319274462,1710636306425,150.0,0.00011781,2]
[319274463,1710636307609,155.48289127,0.00011715,2]
[319274464,1710636312877,679.09501998,0.0001181,2]
[319274465,1710636313351,200.77694229,0.0001181,2]
[319274466,1710636313697,3357.84626022,0.0001181,2]
[319274467,1710636317000,498.85882424,0.0001181,2]
[319274468,1710636319342,2163.23429142,0.0001181,2]
[319274469,1710636320089,1052.96765413,0.0001181,2]
[319274470,1710636321260,160.25297431,0.0001181,2]
[319274471,1710636323424,155.0,0.0001181,2]
[319274472,1710636325362,231.37883763,0.0001181,2]
[319274473,1710636327624,206.10677387,0.0001181,2]
[319274474,1710636328153,205.20911928,0.0001181,2]
[319274475,1710636330107,155.0,0.0001181,2]
[319274476,1710636334071,522.3615409,0.0001181,2]
[319274477,1710636339201,2342.21352072,0.0001181,2]
[319274478,1710636343767,2054.39585781,0.0001181,2]
[319274479,1710636345721,775.74900842,0.0001181,2]
[319274480,1710636346395,2973.09603977,0.0001181,2]
[319274481,1710636348926,3131.66464069,0.0001181,2]
[319274482,1710636350528,972.21381075,0.0001181,2]
[319274483,1710636350911,258.93611907,0.0001181,2]
[319274484,1710636351754,155.0,0.0001181,2]
[319274485,1710636353018,155.0,0.0001181,2]
[319274486,1710636355485,34998.02554367,0.0001181,2]
[319274487,1710636356204,294.3504502,0.0001181,2]
[319274488,1710636360235,440.56571918,0.0001181,2]
[319274489,1710636360771,2054.39585781,0.0001181,2]
[319274490,1710636361290,204.44267562,0.0001181,2]
[319274491,1710636384824,355.87574156,0.0001181,2]
[319274492,1710636419069,1235.12692231,0.0001181,2]
[319274493,1710636427766,5349.71648699,0.0001181,2]
[319274494,1710636431925,170.12045913,0.0001181,2]
[319274495,1710636435956,340.65943347,0.0001181,2]
[319274496,1710636483951,155.0,0.0001181,2]
[319274497,1710636511892,528.93873067,0.0001181,2]
[319274502,1710636627939,155.0,0.0001181,2]
[319274506,1710636632276,-1061.33799988,0.00011811,2]
[319274507,1710636632288,-657.25,0.00011811,2]
[319274508,1710636632303,-1342.26723197,0.00011811,2]
[319274509,1710636632313,-150.0,0.00011999,2]
[319274510,1710636632322,-300.0,0.00011999,2]
[319274511,1710636632333,-7017.23079123,0.00012,2]
[319274512,1710636632342,-249.69624654,0.000125,2]
[319274513,1710636632352,-258.96,0.00012566,2]
[319274514,1710636632361,-250.0,0.00012612,2]
[319274515,1710636632371,-23900.0,0.00012617,2]
[319274516,1710636632380,-775.74900842,0.00012666,2]
[319274517,1710636632390,-155.0,0.00012667,2]
[319274518,1710636632400,-205.20911928,0.00012667,2]
[319274519,1710636632410,-1445.94,0.00012669,2]
[319274520,1710636632420,-1000.0,0.00012671,2]
[319274521,1710636632430,-500.0,0.00012694,2]
[319274522,1710636632439,-150.0,0.000127,2]
[319274523,1710636632449,-171.24,0.00012712,2]
[319274524,1710636632458,-200.0,0.0001272,2]
[319274525,1710636632467,-1018.87,0.00012736,2]
[319274526,1710636632477,-34998.02554367,0.00012736,2]
[319274527,1710636632486,-3112.16,0.00012737,2]
[319274556,1710636632799,-165.0,0.00012781,2]
[319274558,1710636632812,-2888.73,0.00012784,2]
[319274560,1710636632821,-285.28,0.00012865,2]
[319274562,1710636632831,-155.48289125,0.00012877,2]
[319274564,1710636632840,-285.28,0.00012901,2]
[319274566,1710636632849,-285.28,0.00012936,2]
[319274568,1710636632858,-710.29,0.00012963,2]
[319274570,1710636632868,-285.28,0.00012971,2]
[319274572,1710636632877,-285.28,0.00013006,2]
[319274574,1710636632886,-285.28,0.00013042,2]
[319274576,1710636632895,-285.28,0.00013077,2]
[319274578,1710636632904,-285.28,0.00013112,2]
[319274579,1710636632914,-1842.91,0.0001313,2]
[319274580,1710636632923,-285.28,0.00013148,2]
[319274581,1710636632933,-285.28,0.00013183,2]
[319274582,1710636632942,-210.0,0.00013199,2]
[319274583,1710636632951,-540.0,0.00013199,2]
[319274584,1710636632961,-285.28,0.00013218,2]
[319274585,1710636632970,-171.11,0.00013231,2]
[319274586,1710636632979,-285.28,0.00013253,2]
[319274587,1710636632989,-285.28,0.00013289,2]
[319274588,1710636632998,-285.28,0.00013324,2]
[319274589,1710636633008,-174.54,0.00013349,2]
[319274590,1710636633017,-285.28,0.00013359,2]
[319274591,1710636633027,-285.28,0.00013395,2]
[319274592,1710636633037,-2185.76335428,0.00013403,2]
[319274593,1710636633046,-1261.16529933,0.00013405,2]
[319274594,1710636633061,-285.28,0.0001343,2]
[319274595,1710636633070,-155.0,0.00013464,2]
[319274596,1710636633079,-285.28,0.00013465,2]
[319274597,1710636633089,-285.28,0.000135,2]
[319274598,1710636633099,-285.28,0.00013536,2]
[319274599,1710636633108,-1106.5067449,0.00013552,2]
[319274600,1710636633118,-165.0,0.00013676,2]
[319274601,1710636633128,-250.0,0.00013699,2]
[319274602,1710636633138,-177.48,0.00013699,2]
[319274603,1710636633147,-200.0,0.00013699,2]
[319274604,1710636633157,-500.0,0.00013699,2]
[319274605,1710636633167,-5000.0,0.00013699,2]
[319274606,1710636633177,-680.18,0.00013699,2]
[319274607,1710636633187,-176.95,0.00013699,2]
[319274608,1710636633198,-2751.0,0.00013699,2]
[319274609,1710636633207,-159.63,0.00013735,2]
[319274610,1710636633217,-175.16192007,0.00013806,2]
[319274611,1710636633226,-159.63,0.00013927,2]
[319274612,1710636633236,-153.94,0.00013956,2]
[319274613,1710636633246,-11326.19792341,0.00014,2]
[319274614,1710636633255,-155.48289125,0.00014038,2]
[319274615,1710636633265,-171.24,0.00014082,2]
[319274616,1710636633274,-159.63,0.00014119,2]
[319274617,1710636633284,-258.96,0.00014137,2]
[319274618,1710636633293,-189.15,0.0001416,2]
[319274619,1710636633305,-178.30962825,0.000142,2]
[319274620,1710636633314,-226.020118,0.00014247,2]
[319274621,1710636633324,-1000.0,0.00014255,2]
[319274622,1710636633333,-159.63,0.00014311,2]
[319274623,1710636633342,-341.04,0.00014349,2]
[319274624,1710636633354,-231.90185224,0.0001442,2]
[319274625,1710636633363,-159.63,0.00014504,2]
[319274626,1710636633373,-293.0,0.00014519,2]
[319274627,1710636633382,-150.0,0.00014685,2]
[319274628,1710636633391,-346.73,0.00014685,2]
[319274629,1710636633401,-150.0,0.00014685,2]
[319274630,1710636633410,-150.0,0.00014685,2]
[319274631,1710636633420,-150.0,0.00014685,2]
[319274632,1710636633429,-150.0,0.00014685,2]
[319274633,1710636633438,-150.0,0.00014685,2]
[319274634,1710636633448,-150.0,0.00014685,2]
[319274635,1710636633458,-346.73,0.00014685,2]
[319274636,1710636633467,-150.0,0.00014685,2]
[319274637,1710636633476,-516.61,0.00014685,2]
[319274638,1710636633486,-414.85,0.00014685,2]
[319274639,1710636633496,-414.85,0.00014685,2]
[319274640,1710636633507,-150.0,0.00014685,2]
[319274641,1710636633517,-150.0,0.00014685,2]
[319274642,1710636633527,-150.0,0.00014685,2]
[319274643,1710636633536,-150.0,0.00014685,2]
[319274644,1710636633546,-150.0,0.00014685,2]
[319274645,1710636633559,-516.61,0.00014685,2]
[319274646,1710636633569,-346.73,0.00014685,2]
[319274647,1710636633578,-516.61,0.00014685,2]
[319274648,1710636633588,-150.0,0.00014685,2]
[319274649,1710636633597,-150.0,0.00014685,2]
[319274650,1710636633611,-414.85,0.00014685,2]
[319274651,1710636633622,-150.0,0.00014685,2]
[319274652,1710636633632,-150.0,0.00014685,2]
[319274653,1710636633642,-346.73,0.00014685,2]
[319274654,1710636633651,-150.0,0.00014685,2]
[319274655,1710636633662,-414.85,0.00014685,2]
[319274656,1710636633672,-516.61,0.00014685,2]
[319274657,1710636633681,-150.0,0.00014685,2]
[319274658,1710636633691,-346.73,0.00014685,2]
[319274659,1710636633701,-150.0,0.00014685,2]
[319274660,1710636633710,-150.0,0.00014685,2]
[319274661,1710636633719,-150.0,0.00014685,2]
[319274662,1710636633729,-150.0,0.00014685,2]
[319274663,1710636633738,-516.61,0.00014685,2]
[319274664,1710636633748,-374.86,0.00014685,2]
[319274665,1710636633757,-414.85,0.00014685,2]
[319274666,1710636633767,-309.93,0.00014685,2]
[319274667,1710636633776,-346.73,0.00014685,2]
[319274668,1710636633786,-150.0,0.00014685,2]
[319274669,1710636633796,-150.0,0.00014685,2]
[319274670,1710636633809,-150.0,0.00014685,2]
[319274671,1710636633818,-516.61,0.00014685,2]
[319274672,1710636633827,-150.0,0.00014685,2]
[319274673,1710636633837,-346.73,0.00014685,2]
[319274674,1710636633847,-150.0,0.00014685,2]
[319274675,1710636633856,-150.0,0.00014685,2]
[319274676,1710636633866,-414.85,0.00014685,2]
[319274677,1710636633876,-516.61,0.00014685,2]
[319274678,1710636633886,-150.0,0.00014685,2]
[319274679,1710636633896,-346.73,0.00014685,2]
[319274680,1710636633905,-150.0,0.00014685,2]
[319274681,1710636633914,-150.0,0.00014685,2]
[319274682,1710636633924,-414.85,0.00014685,2]
[319274683,1710636633933,-414.85,0.00014685,2]
[319274684,1710636633942,-516.61,0.00014685,2]
[319274685,1710636633952,-150.0,0.00014685,2]
[319274686,1710636633961,-150.0,0.00014685,2]
[319274687,1710636633970,-150.0,0.00014685,2]
[319274688,1710636633980,-346.73,0.00014685,2]
[319274689,1710636633989,-159.63,0.00014696,2]
[319274690,1710636634000,-178.30962824,0.000147,2]
[319274691,1710636634009,-241880.0,0.00014846,2]
[319274692,1710636634019,-150.0,0.00014904,2]
[319274693,1710636634028,-150.0,0.00014959,2]
[319274694,1710636634037,-150.0,0.00014959,2]
[319274695,1710636634048,-150.0,0.00014959,2]
[319274696,1710636634061,-150.0,0.00014959,2]
[319274697,1710636634071,-2550.0,0.00015,4]
[319274698,1710636634080,-10428.18806068,0.00015,2]
[319274699,1710636634090,-225.0,0.00015068,2]
[319274700,1710636634099,-226.020118,0.00015068,2]
[319274701,1710636634109,-1487.89757496,0.000151,2]
[319274702,1710636634119,-3000.0,0.0001515,2]
[319274703,1710636634128,-178.30962824,0.000152,2]
[319274704,1710636634138,-245000.0,0.000152,2]
[319274705,1710636634148,-500.0,0.000152,2]
[319274706,1710636634159,-150.78572596,0.000152,2]
[319274707,1710636634168,-155.48289125,0.000152,2]
[319274708,1710636634178,-11300.77420298,0.000152,2]
[319274709,1710636634187,-189.42603552,0.000152,2]
[319274710,1710636634197,-323.09144544,0.000152,2]
[319274711,1710636634206,-323.0914454,0.00015211,2]
[319274712,1710636634216,-11300.77420292,0.00015218,2]
[319274713,1710636634226,-189.42603551,0.00015221,2]
[319274714,1710636634236,-323.0914454,0.00015221,2]
[319274715,1710636634246,-710.29,0.00015227,2]
[319274716,1710636634256,-323.0914454,0.00015232,2]
[319274717,1710636634265,-369.90167159,0.00015233,2]
[319274718,1710636634274,-369.90167152,0.00015233,2]
[319274719,1710636634284,-369.90167152,0.00015233,2]
[319274720,1710636634294,-369.90167152,0.00015233,2]
[319274721,1710636634305,-369.90167152,0.00015233,2]
[319274722,1710636634314,-369.90167152,0.00015233,2]
[319274723,1710636634323,-163.98230015,0.00015233,2]
[319274724,1710636634332,-163.98230015,0.00015233,2]
[319274725,1710636634341,-163.98230015,0.00015233,2]
[319274726,1710636634351,-369.90167152,0.00015233,2]
[319274727,1710636634361,-11300.77420292,0.00015236,2]
[319274728,1710636634371,-2196.4145,0.00015242,2]
[319274729,1710636634380,-1000.0,0.00015242,2]
[319274730,1710636634390,-8913.9229,0.00015242,2]
[319274731,1710636634399,-5000.0,0.00015242,2]
[319274732,1710636634409,-189.42603551,0.00015242,2]
[319274733,1710636634418,-2363.44087137,0.00015242,2]
[319274734,1710636634427,-433.41980077,0.00015242,2]
[319274735,1710636634436,-323.0914454,0.00015242,2]
[319274736,1710636634446,-105764.19437078,0.0001525,2]
[319274737,1710636634455,-11300.77420292,0.00015255,2]
[319274738,1710636634464,-150.78572596,0.00015267,2]
[319274739,1710636634473,-11300.77420292,0.00015273,2]
[319274740,1710636634482,-369.90167152,0.00015289,2]
[319274741,1710636634491,-11300.77420292,0.00015291,2]
[319274742,1710636634501,-1000.0,0.00015299,2]
[319274743,1710636634510,-920.4433,0.00015299,2]
[319274744,1710636634518,-205.2203656,0.00015299,2]
[319274745,1710636634529,-5001.82936997,0.00015299,2]
[319274746,1710636634538,-1000.0,0.00015299,2]
[319274747,1710636634547,-839.0,0.000153,2]
[319274748,1710636634559,-6441.0,0.000153,2]
[319274749,1710636634569,-318369.11257333,0.000153,2]
[319274750,1710636634578,-80469.6566,0.000153,2]
[319274751,1710636634588,-2648.37621902,0.000153,2]
[319274752,1710636634598,-4175.0,0.000153,2]
[319274753,1710636634607,-156.42994368,0.000153,2]
[319274754,1710636634617,-246.32926238,0.000153,2]
[319274755,1710636634628,-184.9008211,0.000153,2]
[319274756,1710636634638,-182.08770284,0.000153,2]
[319274757,1710636634647,-182.08770284,0.000153,2]
[319274758,1710636634656,-182.08770284,0.000153,2]
[319274759,1710636634666,-182.08770284,0.000153,2]
[319274760,1710636634675,-182.08770284,0.000153,2]
[319274761,1710636634685,-182.08770284,0.000153,2]
[319274762,1710636634696,-182.08770284,0.000153,2]
[319274763,1710636634707,-182.08770284,0.000153,2]
[319274764,1710636634716,-182.08770284,0.000153,2]
[319274765,1710636634725,-182.08770284,0.000153,2]
[319274766,1710636634735,-182.08770284,0.000153,2]
[319274767,1710636634744,-182.08770284,0.000153,2]
[319274768,1710636634754,-182.08770284,0.000153,2]
[319274769,1710636634763,-182.08770284,0.000153,2]
[319274770,1710636634772,-182.08770284,0.000153,2]
[319274771,1710636634782,-182.08770284,0.000153,2]
[319274772,1710636634792,-182.08770284,0.000153,2]
[319274773,1710636634802,-182.08770284,0.000153,2]
[319274774,1710636634813,-182.08770284,0.000153,2]
[319274775,1710636634822,-182.08770284,0.000153,2]
[319274776,1710636634831,-182.08770284,0.000153,2]
[319274777,1710636634840,-182.08770284,0.000153,2]
[319274778,1710636634849,-182.08770284,0.000153,2]
[319274779,1710636634859,-182.08770284,0.000153,2]
[319274780,1710636634869,-182.08770284,0.000153,2]
[319274781,1710636634878,-182.08770284,0.000153,2]
[319274782,1710636634888,-182.08770284,0.000153,2]
[319274783,1710636634897,-182.08770284,0.000153,2]
[319274784,1710636634906,-182.08770284,0.000153,2]
[319274785,1710636634916,-182.08770284,0.000153,2]
[319274786,1710636634926,-11300.77420292,0.00015309,2]
[319274787,1710636634936,-200.0,0.0001531,2]
[319274788,1710636634946,-800.0,0.0001531,2]
[319274789,1710636634955,-500.0,0.0001531,2]
[319274790,1710636634964,-2363.44087135,0.00015321,2]
[319274791,1710636634974,-433.41980075,0.00015321,2]
[319274792,1710636634984,-683.48825924,0.00015321,2]
[319274793,1710636634993,-171.67595032,0.00015325,2]
[319274794,1710636635003,-11300.77420292,0.00015327,2]
[319274795,1710636635013,-159.72,0.00015328,2]
[319274796,1710636635023,-572.79580384,0.00015332,2]
[319274797,1710636635033,-150.78572596,0.00015333,2]
[319274798,1710636635042,-54133.55990203,0.00015339,2]
[319274799,1710636635061,-199010.14334208,0.00015339,2]
[319274800,1710636635121,-607.49998,0.00015339,2]
[319274801,1710636635402,498.85882424,0.0001181,2]
[319274817,1710636638281,-250.0,0.0001441,2]
[319274818,1710636638290,-1525.9,0.00015339,2]
[319274819,1710636638456,-205.2203656,0.00015299,2]
[319274820,1710636638466,-23592.32685747,0.00015339,2]
[319274821,1710636638481,-3943.40061106,0.00015339,2]
[319274822,1710636638534,-3808719.34236879,0.00015339,2]
[319274823,1710636638543,-535.40807805,0.0001534,2]
[319274824,1710636638552,-455.91757843,0.0001534,2]
[319274825,1710636638563,-162.52703146,0.0001534,2]
[319274826,1710636638572,-576.23357321,0.0001534,2]
[319274827,1710636638581,-430.03893582,0.0001534,2]
[319274828,1710636638591,-799.00290175,0.0001534,2]
[319274829,1710636638609,-302.15018672,0.0001534,2]
[319274830,1710636638623,-634.51612194,0.0001534,2]
[319274831,1710636638632,-202.7167562,0.0001534,2]
[319274832,1710636638641,-335.65109378,0.0001534,2]
[319274833,1710636638654,-718.22022971,0.0001534,2]
[319274835,1710636638663,-155.42016587,0.0001534,2]
[319274837,1710636638672,-305.42720631,0.0001534,2]
[319274839,1710636638681,-189.74023871,0.0001534,2]
[319274841,1710636638691,-238.20122576,0.0001534,2]
[319274843,1710636638702,-706.8853811,0.0001534,2]
[319274844,1710636638711,-209.02300309,0.0001534,2]
[319274846,1710636638721,-3826.98796106,0.0001534,2]
[319274848,1710636638730,-604.49667793,0.0001534,2]
[319274850,1710636638739,-106.70339637,0.0001534,2]
[319274851,1710636638752,-48.29660363,0.0001534,2]
[319274852,1710636638761,-4170.213314,0.0001534,2]
[319274853,1710636638770,-277.52851598,0.0001534,2]
[319274854,1710636638780,-158.04643056,0.0001534,2]
[319274855,1710636638789,-5300.0,0.0001534,2]
[319274856,1710636638799,-5073.0,0.0001534,3]
[319274857,1710636638812,-204.51479183,0.0001534,2]
[319274858,1710636638821,-182.17724301,0.0001534,2]
[319274859,1710636638831,-170.65944733,0.0001534,2]
[319274860,1710636638841,-263.20871322,0.0001534,2]
[319274861,1710636638851,-265.26654513,0.0001534,2]
[319274862,1710636638860,-166.01806612,0.0001534,2]
[319274863,1710636638870,-5300.0,0.0001534,4]
[319274864,1710636638884,-782.40260707,0.0001534,2]
[319274865,1710636638893,-156.01166442,0.0001534,2]
[319274866,1710636638903,-155.0,0.0001534,2]
[319274867,1710636638912,-404.25317979,0.0001534,2]
[319274868,1710636638922,-255.4947204,0.0001534,2]
[319274869,1710636638931,-207.34948275,0.0001534,2]
[319274870,1710636638940,-229.47576635,0.0001534,2]
[319274871,1710636639246,-715.69890746,0.0001534,2]
[319274872,1710636639256,-343.37224521,0.0001534,2]
[319274873,1710636639265,-682.27722025,0.0001534,2]
[319274874,1710636639275,-212.07417547,0.0001534,2]
[319274875,1710636639284,-1096.28627725,0.0001534,2]
[319274876,1710636639294,-197.06053943,0.0001534,2]
[319274877,1710636639303,-160.22207115,0.0001534,2]
[319274878,1710636639315,-2220.2469923,0.0001534,2]
[319274879,1710636639324,-231.88868086,0.0001534,2]
[319274880,1710636639337,-205.94091651,0.0001534,2]
[319274881,1710636639346,-536.3303568,0.0001534,2]
[319274882,1710636639356,-536.84122639,0.0001534,2]
[319274883,1710636639366,-2971.50645971,0.0001534,2]
[319274884,1710636639375,-970.99024343,0.0001534,2]
[319274885,1710636639385,-337.23249806,0.0001534,2]
[319274886,1710636639394,-3142.11897169,0.0001534,2]
[319274887,1710636639404,-357.81281904,0.0001534,2]
[319274888,1710636639413,-294.04398676,0.0001534,2]
[319274889,1710636639423,-205.29676604,0.0001534,2]
[319274890,1710636639433,-267.04915129,0.0001534,2]
[319274891,1710636639442,-155.64552783,0.0001534,2]
[319274892,1710636639450,-169.57431172,0.0001534,2]
[319274893,1710636639460,-361.6008575,0.0001534,2]